Cogmind - Beta 13 @@@ ROGUE MODE // 2024.04.26 @ 12:14:19 Player: SovietPaperclip Result: Self-destructed Performance ------------- Evolutions (2) 1000 Regions Visited (3) 600 Robots Destroyed (41) 205 Value Destroyed (1271) 1271 Prototype IDs (12) 240 Alien Tech Used (0) 0 Bonus (0) 0 TOTAL SCORE: 3316 Bonus ------- None Cogmind --------- Core Integrity 382/550 Matter 216/300 Energy 58/290 System Corruption 7% Temperature Cool (0) Movement Treading (325) Ox2 Location -8/Materials Parts ------- > --- POWER (1) -------- Improved Deuterium Engine > --- PROPULSION (4) --- Armored Treads Medium Treads > --- UTILITY (4) ------ Huge Storage Unit Core Analyzer Improved Medium Armor Plating > --- WEAPON (2) ------- (None) > --- INVENTORY (25) --- Light Nuclear Core Armored Treads Medium Treads Medium Treads Cooling System Cooling System Compact Matter Pod (150) Machine Analyzer Improved Sensor Array Improved Signal Interpreter Advanced Targeting Computer Armor Integrity Analyzer Improved Weapon Shielding Improved Medium Armor Plating Improved Medium Armor Plating Hacking Suite Hacking Suite Improved Grenade Launcher Improved Grenade Launcher Peak State ------------ > --- POWER ------------ Improved Deuterium Engine > --- PROPULSION ------- Armored Treads Medium Treads > --- UTILITY ---------- Huge Storage Unit Core Analyzer Improved Medium Armor Plating > --- WEAPON ----------- Powered Cannon > --- INVENTORY -------- Light Nuclear Core Armored Treads Medium Treads Medium Treads Cooling System Cooling System Compact Matter Pod Machine Analyzer Improved Sensor Array Improved Signal Interpreter Advanced Targeting Computer Armor Integrity Analyzer Improved Weapon Shielding Improved Medium Armor Plating Improved Medium Armor Plating Hacking Suite Hacking Suite Improved Grenade Launcher Improved Grenade Launcher [Rating: 40] Favorites ----------- Power Light Nuclear Core Engine Improved Ion Engine Power Core Light Nuclear Core Propulsion Light Treads Treads Light Treads Utility Huge Storage Unit Device Hardlight Generator Storage Huge Storage Unit Processor Targeting Computer Protection Scrap Shield Weapon Subdweller Machine Gun Energy Gun Small Laser Energy Cannon Powered Cannon Ballistic Gun Subdweller Machine Gun Launcher Grenade Launcher Build | -11 -10 -10 -8 ------- Run | Yrd Mat Sub Mat Slots Evolved 4 | . . . 4 Power . | . . . . Propulsion 2 | . . . 2 Utility 2 | . . . 2 Weapon . | . . . . Parts Attached 46 | 6 5 7 28 Power 6 | 1 1 1 3 Engine 5 | 1 . 1 3 Core 1 | . 1 . . Reactor . | . . . . Propulsion 8 | 2 . 1 5 Treads 8 | 2 . 1 5 Leg . | . . . . Wheel . | . . . . Hover . | . . . . Flight . | . . . . Utility 17 | 1 4 1 11 Device 2 | . 1 . 1 Storage 4 | 1 2 . 1 Processor 2 | . 1 . 1 Hackware . | . . . . Protection 9 | . . 1 8 Artifact . | . . . . Weapon 15 | 2 . 4 9 Energy Gun 1 | 1 . . . Energy Cannon 2 | . . . 2 Ballistic Gun 11 | 1 . 3 7 Ballistic Cannon . | . . . . Launcher 1 | . . 1 . Special Weapon . | . . . . Impact Weapon . | . . . . Slashing Weapon . | . . . . Piercing Weapon . | . . . . Special Melee Weapon . | . . . . Unidentified Prototypes 2 | . . . 2 Parts Lost 10 | . . 1 9 Power 2 | . . 1 1 Propulsion 2 | . . . 2 Utility 3 | . . . 3 Weapon 3 | . . . 3 Highest Loss Streak 7 | . . 1 7 To Critical Strikes . | . . . . Average Slot Usage (%) 92 | . 98 91 91 Engine 5 | . 3 3 8 Core 5 | . 10 9 . Treads 30 | . 28 28 33 Storage 9 | . 14 7 8 Processor 4 | . 10 7 . Protection 11 | . . 6 21 Energy Gun 2 | . 14 . . Ballistic Gun 20 | . 14 27 17 Naked Turns . | . . . . Heaviest Build 118 | 13 90 91 118 Greatest Support 96 | 40 40 40 96 Greatest Overweight (x) 2 | . 2 2 2 Average Overweight (x) . | . 1 . 1 Largest Inventory Capacity 25 | 8 25 25 25 Average Capacity 20 | 7 22 15 25 Most Carried 25 | 2 6 11 25 Average Carried 11 | . 4 7 17 Final Capacity 25 | 8 25 5 25 Final Carried 19 | 2 6 5 19 Class Distribution -------------------- 72% | Mutant 21% | Subdweller-Mutant 6% | Scavenger-Mutant Dominant Class ---------------- Mutant | -10/Materials Mutant | -10/Subcaves Mutant | -8/Materials Resources | -11 -10 -10 -8 ----------- Run | Yrd Mat Sub Mat Matter Collected 1872 | 206 139 464 1063 Remotely . | . . . . Salvage Created 1585 | 26 171 324 1064 Parts 102 | 2 14 21 65 Haulers Intercepted 2 | . . . 2 Recyclers Shooed 5 | . . . 5 Parts Field Recycled . | . . . . Retrieved Matter . | . . . . Parts Self-Destructed 4 | . . 4 . Prevented . | . . . . Kills | -11 -10 -10 -8 ------- Run | Yrd Mat Sub Mat Combat Hostiles Destroyed 26 | . 3 8 15 Guns 25 | . 3 7 15 AOE 1 | . . 1 . Classes Destroyed 12 | 1 4 2 5 Worker 3 | . 1 . 2 Builder 2 | . . . 2 Tunneler 3 | 1 . . 2 Hauler 2 | . . . 2 Recycler 1 | . . . 1 Operator 3 | . 1 . 2 Watcher 1 | . 1 . . Grunt 11 | . 3 . 8 Sentry 6 | . . . 6 Specialist 1 | . . . 1 Cobbler 1 | . . 1 . Subdweller 8 | . . 8 . Best Kill Streak 4 | 1 2 2 4 Combat Bots Only 4 | . 2 2 4 Max Kills in Single Turn 1 | 1 1 1 1 Gunslinging . | . . . . Exploded 1 | . . 1 . Melee . | . . . . Uniques/NPCs Destroyed . | . . . . Combat | -11 -10 -10 -8 -------- Run | Yrd Mat Sub Mat Hostile Shots Fired 210 | . 22 40 148 Missed 56 | . 7 14 35 Damage Taken 2757 | . 185 578 1994 Core 410 | . 22 220 168 Absorbed by Shields 240 | . . . 240 Ignored by Resistances 217 | . . . 217 Core Remaining (%) 51 | 100 . 3 . Volleys Fired 201 | 1 25 46 129 Largest 2 | 2 2 2 2 Hottest 60 | 60 60 60 60 Shots Fired 369 | 2 48 92 227 Gun 354 | 2 48 87 217 Cannon 10 | . . . 10 Launcher 5 | . . 5 . Special . | . . . . Kinetic 325 | 1 25 82 217 Thermal 39 | 1 23 5 10 Explosive 5 | . . 5 . Electromagnetic . | . . . . Robot Hit Streak 18 | 1 6 12 18 Robot Miss Streak 5 | 1 5 1 4 Penetration Max . | . . . . Secondary Targets 6 | . 1 . 5 Max Gunslinging Chain 1 | . 1 . 1 Shots Hit Robots 231 | 1 24 41 165 Core Hits 75 | 1 11 14 49 Critical Kills 3 | . . 2 1 Critical Parts Destroyed 2 | . 1 . 1 Critical Strikes 5 | . 1 2 2 Destroy 5 | . 1 2 2 Melee Attacks . | . . . . Impact . | . . . . Slashing . | . . . . Piercing . | . . . . Sneak Attacks . | . . . . Combat Hostiles . | . . . . Follow-up Attacks . | . . . . Damage Inflicted 4248 | 23 281 954 2990 Guns 3410 | 23 281 644 2462 Cannons 448 | . . . 448 Explosions 390 | . . 310 80 Melee . | . . . . Ramming . | . . . . Kinetic 3206 | 13 121 610 2462 Thermal 652 | 10 160 34 448 Explosive 390 | . . 310 80 Electromagnetic . | . . . . Impact . | . . . . Slashing . | . . . . Piercing . | . . . . Highest Corruption 7 | . . . 7 Average Corruption 5 | . . . 5 Corruption Purged . | . . . . Corruption Blocked . | . . . . Effects 52 | . . . 52 Message Errors 12 | . . . 12 Matter Fused 12 | . . . 12 Heat Flow Errors 5 | . . . 5 Energy Discharges 6 | . . . 6 Parts Rejected 2 | . . . 2 Parts Fused 1 | . . . 1 Data Loss (minor) 4 | . . . 4 Data Loss (major) 4 | . . . 4 Misfires 2 | . . . 2 Alerts 3 | . . . 3 Weapon Failures 1 | . . . 1 Overload Shots . | . . . . Overflow Damage 10 | . . . 10 Projectiles . | . . . . Explosions 10 | . . . 10 Melee . | . . . . Knockbacks . | . . . . Impact . | . . . . Kinetic . | . . . . Secondary . | . . . . Self-Inflicted Damage 74 | . . 48 26 Shots 5 | . . 4 1 Rammed . | . . . . Targets Rammed . | . . . . Kicked . | . . . . Crushed . | . . . . Highest Temperature 210 | . 72 . 210 Average Temperature 48 | . 25 . 53 Received Heat Transfer 791 | . 102 84 605 Siege Activations . | . . . . Robots Corrupted . | . . . . Combat Hostiles . | . . . . Parts Fried . | . . . . Impact Corruptions . | . . . . Robots Melted . | . . . . Combat Hostiles . | . . . . Parts Melted 1 | . 1 . . Heat Transferred 475 | 25 375 75 . Parts Sabotaged . | . . . . Parts Stolen . | . . . . Parts Stripped . | . . . . Power Chain Reactions . | . . . . Alert | -11 -10 -10 -8 ------- Run | Yrd Mat Sub Mat Peak Influence 234 | 5 81 . 234 Initial 3 | . 3 . . Average 50 | . 27 . 61 Maximum Alert Level 1 | . . . 1 Low Security (%) 95 | 100 100 . 94 Level 1 4 | . . . 5 Level 2 . | . . . . Level 3 . | . . . . Level 4 . | . . . . Level 5 . | . . . . High Security . | . . . . Max Security . | . . . . Squads Dispatched 8 | . 1 . 7 Investigation . | . . . . Extermination . | . . . . Reinforcement 8 | . 1 . 7 Assault . | . . . . Garrison . | . . . . Intercept . | . . . . Searches Triggered . | . . . . Construction Impeded 1 | . . . 1 Haulers Reinforced . | . . . . Active Scanning Responses . | . . . . Cargo Convoy Interrupts . | . . . . Stealth | -11 -10 -10 -8 --------- Run | Yrd Mat Sub Mat Distress Signals 3 | . . . 3 Communications Jammed . | . . . . Distress Signals . | . . . . Times Spotted 43 | . 9 8 26 Peak Tracking Total 5 | . 2 2 5 Tactical Retreats 3 | . . . 3 Traps | -11 -10 -10 -8 ------- Run | Yrd Mat Sub Mat Traps Triggered 6 | . . . 6 Indirectly . | . . . . Trap Hack Attempts . | . . . . Triggered . | . . . . Disarmed . | . . . . Reprogrammed . | . . . . Reused . | . . . . Traps Extracted . | . . . . Installed . | . . . . Triggered . | . . . . Machines | -11 -10 -10 -8 ---------- Run | Yrd Mat Sub Mat Machines Disabled 3 | . . 1 2 Max in Single Turn 2 | . . 1 2 Machines Repaired . | . . . . Machines Dismantled . | . . . . Machines Sabotaged . | . . . . Overloaded Fab Kills . | . . . . Hacking | -11 -10 -10 -8 --------- Run | Yrd Mat Sub Mat Machines Accessed 5 | . . 2 3 Terminals 3 | . . . 3 Fabricators . | . . . . Repair Stations . | . . . . Recycling Units . | . . . . Scanalyzers . | . . . . Garrison Access . | . . . . Total Hacks 9 | . . 2 7 Successful 3 | . . 2 1 Failed 6 | . . . 6 Catastrophic 1 | . . . 1 Database Lockouts . | . . . . Manual . | . . . . Terminals 7 | . . . 7 Fabricators . | . . . . Repair Stations . | . . . . Recycling Units . | . . . . Scanalyzers . | . . . . Garrison Access . | . . . . Terminal Hacks 3 | . . 2 1 Record 1 | . . 1 . Zone Layout 1 | . . . 1 Derelict Proto ID Bank 1 | . . 1 . Fabricator Hacks . | . . . . Repair Station Hacks . | . . . . Recycling Unit Hacks . | . . . . Scanalyzer . | . . . . Garrison Access Hacks . | . . . . Unauthorized Hacks . | . . . . Terminals . | . . . . Fabricators . | . . . . Repair Stations . | . . . . Recycling Units . | . . . . Scanalyzers . | . . . . Garrison Access . | . . . . Data Cores Recovered . | . . . . Used . | . . . . Hacking Detections 3 | . . . 3 Full Trace Events 1 | . . . 1 Feedback Events . | . . . . Feedback Blocked . | . . . . Robot Schematics Acquired . | . . . . Robots Built . | . . . . Authchips . | . . . . Time . | . . . . Total Robot Build Rating . | . . . . Part Schematics Acquired . | . . . . Parts Built . | . . . . Authchips . | . . . . Time . | . . . . Total Part Build Rating . | . . . . Parts Repaired . | . . . . Time . | . . . . Parts Recycled . | . . . . Recycled Matter . | . . . . Retrieved Matter . | . . . . Retrieved Components . | . . . . Parts Scanalyzed . | . . . . Part Schematics Acquired . | . . . . Parts Damaged . | . . . . Bothacking | -11 -10 -10 -8 ------------ Run | Yrd Mat Sub Mat Used RIF Installer . | . . . . Robots Hacked . | . . . . Non-combat . | . . . . Combat . | . . . . Robot Hacks Applied . | . . . . Relay Couplers Released . | . . . . Fabnet Peak Effective % . | . . . . Robots Rewired . | . . . . Allies Hacked . | . . . . Hacks Repelled . | . . . . Allies | -11 -10 -10 -8 -------- Run | Yrd Mat Sub Mat Total Allies . | . . . . Largest Group . | . . . . Highest-Rated Group . | . . . . Highest-Rated Ally . | . . . . Total Orders . | . . . . Ally Attacks . | . . . . Total Damage . | . . . . Kills . | . . . . Allies Corrupted . | . . . . Allies Melted . | . . . . Intel | -11 -10 -10 -8 ------- Run | Yrd Mat Sub Mat Robot Analysis Total . | . . . . Derelict Logs Recovered 1 | . . 1 . Drone Launches . | . . . . Drone Recoveries . | . . . . Exploration | -11 -10 -10 -8 ------------- Run | Yrd Mat Sub Mat Turns Passed 6441 | 77 1010 2663 2691 Spaces Moved 2370 | 42 309 1143 876 Core 3 | 3 . . . Treads 2367 | 39 309 1143 876 Legs . | . . . . Wheels . | . . . . Hover . | . . . . Flight . | . . . . Fastest Speed 50 | 50 160 160 242 Average Speed 238 | 152 282 218 252 Slowest Speed 340 | 160 320 320 340 Overloaded Moves . | . . . . Propulsion Burnouts . | . . . . Robots Hopped . | . . . . Cave-ins Triggered . | . . . . Exploration Rate (%) 43 | 4 40 55 75 Regions Visited 3 Branch Regions 1 Pre-discovered Areas 1 | . . 1 . Known Exits Taken . | . . . . Unknown Exits Taken 3 | 1 1 1 . Scrap Searched 4 | . . 4 . Spaces Dug . | . . . . Terrain Destroyed 52 | . . 6 46 Melee . | . . . . Projectile 3 | . . . 3 AOE 49 | . . 6 43 Terrain Rammed . | . . . . Walls Destroyed . | . . . . Machines Disabled . | . . . . Actions | -11 -10 -10 -8 --------- Run | Yrd Mat Sub Mat Total 2802 | 50 401 1219 1132 Wait 100 | . 55 1 44 Move 2367 | 41 308 1142 876 Hop . | . . . . Pick Up 52 | 2 4 7 39 Fast Attach 22 | 6 2 3 11 Attach 14 | . 1 1 12 Detach 1 | . 1 . . Swap 10 | . 2 3 5 Drop 29 | . 3 10 16 Fire 201 | 1 25 46 129 Melee . | . . . . Ram . | . . . . Kick . | . . . . Crush . | . . . . Escape Stasis . | . . . . Rewire 4 | . . 4 . Trap . | . . . . Miscellaneous 2 | . . 2 . Route ------- -11/Scrapyard -10/Materials (discovered 3 exits: [*Min x2] / *Sub) -10/Subcaves (discovered 2 exits: *Mat x2) -8/Materials (discovered 2 exits: [*Fac x2]) History --------- Turn | Location | Event 14 | -11/Scrapyard | Discovered new exit (range 15) 78 | -11/Scrapyard | Entered Materials 213 | -10/Materials | Discovered new exit (range 16) 236 | -10/Materials | Discovered new exit (range 11) 336 | -10/Materials | Build established: Mutant 1066 | -10/Materials | Discovered new exit (range 8) 1088 | -10/Materials | Entered Subcaves 1244 | -10/Subcaves | Ambushed by Subdwellers from Twisted Machinery 1244 | -10/Subcaves | Discovered new exit (range 14) 1258 | -10/Subcaves | Core integrity fell below 50% 1856 | -10/Subcaves | Visited Clippyterm 2054 | -10/Subcaves | Learned location of Zion (-7) 2121 | -10/Subcaves | Disturbed a concealed Subdweller 2241 | -10/Subcaves | Shifting Twisted Machinery released Sub. Laser 2275 | -10/Subcaves | Shifting Twisted Machinery released Sub. Laser 2481 | -10/Subcaves | Core integrity fell below 20% 3012 | -10/Subcaves | Build established: Subdweller-Mutant 3051 | -10/Subcaves | Visited 4L-MR0's lab 3066 | -10/Subcaves | Found Powered Cannon 3103 | -10/Subcaves | Discovered new exit (range 8) 3751 | -10/Subcaves | Entered Materials 3751 | -8/Materials | Evolved 4 slots: Propulsion x2, Utility x2 4353 | -8/Materials | Build established: Scavenger-Mutant 4368 | -8/Materials | Met 7R-MNS 4774 | -8/Materials | Build established: Mutant 5522 | -8/Materials | Discovered new exit (range 16) 6393 | -8/Materials | Discovered new exit (range 3) 6420 | -8/Materials | Attached Powered Cannon, gained temporary slot: Power 6442 | -8/Materials | Self-destructed Last Messages --------------- 06397_ Purification Channel disabled. 06399_ Slug penetrates H-61 Shepherd. 06401_ Hardlight Generator destroyed. 06401_ Critical hit (Blast). 06402_ System corrupted: Gauss Rifle rejected. 06406_ Imp. Assault Rifle destroyed. 06417_ Hvy. Assault Rifle destroyed. 06417_ Imp. Medium Armor Plating destroyed. 06417_ Lgt. Treads blasted off. 06420_ Core temporarily expanded with Power slot. 06422_ Lgt. Treads destroyed. 06422_ Reactive Plating destroyed. 06427_ Penetrated by Slug. 06432_ System corrupted: Substantial component data lost. 06432_ System corrupted: Powered Cannon failed to cycle. 06442_ Powered Cannon destroyed. 06442_ Temporary Power slot lost. Map ----- +----------------------------------------------------+ | #????????????????# ###????????# #????? | | " #????????????????## # ?????????# #????? | | " #?????????????????# %# #????????# #????? | | " ##########????????##+# ##+########???# #????? | | # #????????## # # *! #???# #????? | | # """ #????????##%###### * #??## ##???? | | # ! """ #????????#% /[ #??# #???? | | #!] """ #????????# #####*! #??# #???? | | +## !! #????????# #???#===! #??# #???? | | # ! """ #????????# #???# %! #??# ##### | | # """ #????????# #???# = #??# ## | | T + """ #????????# #???# ! === #??# ## "" | | # #????????# ##########+####### ## "T | | ###########????????# %= % % ## "" | | #??????????????????# % [ % + | | #??????????????????# % ## | | #??????????????????+ ###+####### ###+##+###+# | | ##?????????????????# # #??# # + ^ | | #?????????????????# # [ #??# # "" ### ^ | | #?????????????????# # #??# # "" #?# ^ | | #?????????????????# # " #??# + """ #?# | | #?????????????????? # """ #### # #?# | | ###########???????#? # """ + #] #?# | | =# #???????#; ??#%%""" #####+#########?# | | + #????????# # %"" #?? ######+# | | # #????????# H =@%% " ## #! [ %! | | # ]!! [ #????????# # %"" ## # =""" | | ## ]!| #????????##??# """ ## # !"""" | | ?# ]!| #????????????# " ## #! """" | | ?? #????????????# ## #! """" | | ?? !#????????????### ##### # """ | | ??##########???????????????##???# #! | | ?????????????????????????????????################# | | | | | | | | | | | | | | | | | | | | | | | | | | | | | | | | | | | +----------------------------------------------------+ Best States ------------- Heat Dissipation 31 Energy Generation 16 Energy Capacity 290 Matter Stores 300 Matter Capacity 300 Sight Range 16 Terrain Scan Density 10 ECM Strength 1 Armor Coverage 800 Resistance: KI 20 Utility Shielding 66 Evasion (%) 40 Targeting Accuracy 5 Recoil Reduction 4 Item Schematics ----------------- None Robot Schematics ------------------ None Fabricated ------------ Nothing Alien Tech Used ----------------- None Achievements -------------- None Challenges ------------ None Game ------ Seed TractorChainBattery Manual? 0 Play Time 00:26:24 Cumulative 112.4 hours Start 2024.04.26 @ 11:49:35 End 2024.04.26 @ 12:14:19 Sessions 1 Manual Loads 0 Difficulty Rogue Special Mode None Game No. 137 Rogue 137 Adventurer 0 Explorer 0 Win Type - Total 1 Types 1/0/0/0/0/0/0/0/0 Lore% 48 Gallery% 52 Achievement% 50 Wizard Run 0 Options --------- Layout 1 ASCII 0 Keyboard 0 Movement Mouse Keybinds 0 Fullscreen 2 Font 32/Smallcaps Map View 50x40 Zoom Use 0% Tactical HUD 1 Map Filters NONE Filters NONE Steam 1 RUN: 0812ff7e-d107-415e-b538-3f60d917cee3